bitfinex/quotes_BTCUSD_20240719
["timestamp","ask_amount","ask_price","bid_price","bid_amount"]
[1721361200569,0.155336,64377.0,64374.0,0.07717479]
[1721361200897,0.04934852,64381.0,64374.0,0.07717479]
[1721361201196,0.15812,64381.0,64376.0,0.155336]
[1721361201375,0.002794,64381.0,64377.0,0.155334]
[1721361201809,0.003624,64382.0,64377.0,0.155334]
[1721361202215,0.004,64381.0,64377.0,0.155334]
[1721361202594,0.00083,64382.0,64377.0,0.155334]
[1721361202794,0.004,64381.0,64377.0,0.155334]
[1721361203818,0.009,64381.0,64378.0,0.155332]
[1721361204026,0.005,64381.0,64380.0,0.1443]
[1721361204230,0.005,64381.0,64380.0,0.299627]
[1721361204429,0.005,64381.0,64380.0,0.610282]
[1721361204638,0.00583,64382.0,64381.0,0.465975]
[1721361205041,0.00583,64382.0,64381.0,0.776625]
[1721361205921,0.00083,64382.0,64381.0,0.776625]
[1721361207313,0.00083,64382.0,64381.0,0.778625]
[1721361208367,0.00083,64382.0,64381.0,0.85579979]
[1721361209227,0.00083,64382.0,64381.0,0.778625]
[1721361212522,0.00083,64382.0,64381.0,0.002]
[1721361212723,0.466797,64382.0,64381.0,0.002]
[1721361212924,1.09483533,64382.0,64381.0,0.002]
[1721361213217,1.79880311,64382.0,64381.0,0.002]
[1721361213382,0.610877,64367.0,64365.0,0.000913]
[1721361215174,0.610877,64367.0,64366.0,0.002913]
[1721361217642,0.31071,64369.0,64366.0,0.002913]
[1721361217643,0.155355,64369.0,64366.0,0.002913]
[1721361218427,0.310668,64378.0,64369.0,0.310706]
[1721361218628,0.155339,64376.0,64369.0,0.310706]
[1721361218741,0.155339,64376.0,64371.0,0.155349]
[1721361219458,0.310668,64378.0,64373.0,0.155343]
[1721361219459,0.155332,64378.0,64373.0,0.155343]
[1721361219659,0.002794,64378.0,64373.0,0.155343]
[1721361220071,0.155335,64377.0,64373.0,0.155343]
[1721361220288,0.155337,64376.0,64371.0,0.155347]
[1721361220807,0.0941205,64375.0,64373.0,0.001]
[1721361221023,0.310668,64378.0,64373.0,0.001]
[1721361221024,0.851811,64374.0,64373.0,0.001]
[1721361221316,0.916211,64374.0,64373.0,0.001]
[1721361221450,0.155354,64370.0,64369.0,0.001]
[1721361221859,0.155346,64373.0,64367.0,0.310718]
[1721361222306,0.155346,64373.0,64369.0,0.155353]
[1721361222930,0.310686,64374.0,64366.0,0.156273]
[1721361223085,0.15535,64371.0,64366.0,0.156273]
[1721361223267,0.155346,64373.0,64367.0,0.155358]
[1721361223480,0.155346,64373.0,64368.0,0.155356]
[1721361223883,0.155348,64372.0,64368.0,0.155356]
[1721361224107,0.002,64370.0,64366.0,0.157272]
[1721361224306,0.155348,64372.0,64367.0,0.155357]
[1721361224503,0.155348,64372.0,64366.0,0.001913]
[1721361224504,0.007,64374.0,64368.0,0.310708]
[1721361224703,0.005,64373.0,64371.0,0.0817]
[1721361224904,0.005,64373.0,64372.0,0.218547]
[1721361225105,0.005,64373.0,64372.0,0.155347]
[1721361225749,0.155335,64377.0,64372.0,0.155347]
[1721361225907,0.158126,64379.0,64373.0,0.155344]
[1721361226108,0.002794,64381.0,64374.0,0.155341]
[1721361226511,0.15533,64379.0,64374.0,0.155341]
[1721361227085,0.00083,64382.0,64381.0,0.155325]
[1721361227423,0.00083,64382.0,64381.0,0.465975]
[1721361228220,0.01083,64382.0,64381.0,0.466975]
[1721361228727,0.01183,64382.0,64381.0,0.472975]
[1721361229852,0.00183,64382.0,64381.0,0.471975]
[1721361230192,0.00183,64382.0,64381.0,0.476975]
[1721361235754,0.00183,64382.0,64381.0,0.011]
[1721361236382,0.00183,64382.0,64381.0,0.166325]
[1721361237140,0.922842,64382.0,64381.0,0.011]
[1721361237350,0.612197,64382.0,64381.0,0.011]
[1721361237549,0.155327,64381.0,64376.0,0.155336]
[1721361237917,0.158121,64381.0,64376.0,0.155336]
[1721361238393,0.155327,64380.0,64376.0,0.155336]
[1721361238548,0.002794,64379.0,64374.0,0.310682]
[1721361238752,0.002794,64381.0,64377.0,0.155333]
[1721361239174,0.300553,64382.0,64377.0,0.155333]
[1721361239375,0.002794,64381.0,64377.0,0.155333]
[1721361239581,0.301553,64382.0,64377.0,0.155333]
[1721361239779,0.002794,64381.0,64377.0,0.155333]
[1721361239944,0.300553,64382.0,64377.0,0.155333]
[1721361240147,0.002794,64381.0,64377.0,0.155333]
[1721361240926,0.002794,64381.0,64380.0,0.155327]
[1721361241202,0.00083,64382.0,64380.0,0.155327]
[1721361241613,0.00083,64382.0,64381.0,0.155325]
[1721361243763,0.00083,64382.0,64377.0,0.312669]
[1721361243764,0.157152,64382.0,64377.0,0.157334]
[1721361243967,0.002794,64381.0,64377.0,0.155334]
[1721361244909,0.158119,64381.0,64377.0,0.155334]
[1721361245113,0.215528,64380.0,64374.0,0.310681]
[1721361245312,0.002794,64379.0,64376.0,0.155336]
[1721361245511,0.0788,64378.0,64376.0,0.155336]
[1721361245749,0.0788,64378.0,64377.0,0.001]
[1721361245951,0.0602,64380.0,64377.0,0.156334]
[1721361246177,0.002794,64379.0,64377.0,0.156334]
[1721361246329,0.002794,64381.0,64377.0,0.156334]
[1721361246654,0.002794,64381.0,64378.0,0.155332]
[1721361246829,0.00083,64382.0,64378.0,0.155332]
[1721361247151,0.004624,64382.0,64378.0,0.155332]
[1721361247553,0.003624,64382.0,64378.0,0.155332]
[1721361248094,0.003624,64382.0,64376.0,0.31067]
[1721361248300,0.00083,64382.0,64379.0,0.155329]
[1721361249893,0.0755,64381.0,64377.0,0.000913]
[1721361250088,0.0755,64381.0,64378.0,0.155331]
[1721361250306,0.00083,64382.0,64378.0,0.155331]
[1721361251036,0.002794,64381.0,64378.0,0.155331]
[1721361251239,0.002794,64381.0,64377.0,0.000913]
[1721361251729,0.002794,64381.0,64378.0,0.155331]
[1721361252086,0.004624,64382.0,64378.0,0.155331]
[1721361252388,0.004624,64382.0,64378.0,0.156331]
[1721361253086,0.003624,64382.0,64378.0,0.156331]
[1721361253709,0.003624,64382.0,64379.0,0.155329]
[1721361253914,0.00083,64382.0,64379.0,0.155329]
[1721361254473,0.00183,64382.0,64379.0,0.155329]
[1721361254867,0.00183,64382.0,64377.0,0.000913]
[1721361254868,0.156153,64382.0,64377.0,0.000913]
[1721361255153,0.002794,64381.0,64377.0,0.000913]
[1721361255374,0.15812,64381.0,64377.0,0.000913]
[1721361255733,0.15812,64381.0,64377.0,0.156246]
[1721361255931,0.155326,64381.0,64377.0,0.156246]
[1721361256152,0.002794,64380.0,64377.0,0.156246]
[1721361258178,0.002794,64380.0,64377.0,0.157246]
[1721361258779,0.002794,64380.0,64377.0,0.160246]
[1721361260508,0.002794,64380.0,64377.0,0.004913]
[1721361263370,0.156153,64382.0,64379.0,0.15533]
[1721361263371,0.00083,64382.0,64379.0,0.15533]
[1721361264564,0.00083,64382.0,64377.0,0.000913]
[1721361264770,0.00183,64382.0,64380.0,0.155326]
[1721361265557,0.00083,64382.0,64380.0,0.155326]
[1721361266857,0.00183,64382.0,64380.0,0.155326]
[1721361267547,0.00083,64382.0,64380.0,0.155326]
[1721361267957,0.00083,64382.0,64379.0,0.15533]
[1721361268510,0.00183,64382.0,64379.0,0.15533]
[1721361269853,0.00183,64382.0,64380.0,0.155327]
[1721361270006,0.00183,64382.0,64377.0,0.000913]
[1721361270208,0.00183,64382.0,64380.0,0.155327]
[1721361270614,0.00083,64382.0,64380.0,0.155327]
[1721361271038,0.00183,64382.0,64380.0,0.155327]
[1721361271436,0.00083,64382.0,64381.0,0.155325]
[1721361271641,0.00083,64382.0,64377.0,0.001913]
[1721361271959,0.00083,64382.0,64380.0,0.156327]
[1721361272159,0.00083,64382.0,64380.0,0.159327]
[1721361272367,0.00083,64382.0,64380.0,0.155327]
[1721361272706,0.00083,64382.0,64377.0,0.000913]
[1721361272707,0.00083,64382.0,64381.0,0.003]
[1721361272914,0.00083,64382.0,64378.0,0.155332]
[1721361273122,0.003624,64382.0,64378.0,0.155332]
[1721361273817,0.003624,64382.0,64381.0,0.001]
[1721361274159,0.00083,64382.0,64381.0,0.001]
[1721361274438,0.00083,64382.0,64381.0,0.465975]
[1721361274723,0.00083,64382.0,64381.0,0.919325]
[1721361275272,0.00083,64382.0,64381.0,0.920325]
[1721361276103,0.00083,64382.0,64381.0,0.777625]
[1721361282302,0.00083,64382.0,64381.0,0.866625]
[1721361282563,0.00083,64382.0,64381.0,0.865625]
[1721361282992,0.00083,64382.0,64381.0,0.869625]
[1721361283514,0.00083,64382.0,64381.0,0.870625]
[1721361284174,0.00083,64382.0,64381.0,0.869625]
[1721361284334,0.00083,64382.0,64381.0,0.867625]
[1721361285219,0.00083,64382.0,64381.0,0.871625]
[1721361285612,0.310595,64393.0,64381.0,0.095]
[1721361285902,0.155301,64391.0,64386.0,0.155312]
[1721361286267,0.155301,64391.0,64387.0,0.002794]
[1721361286829,0.310574,64397.0,64387.0,0.158103]
[1721361286991,0.155297,64393.0,64387.0,0.158103]
[1721361287196,0.165297,64393.0,64387.0,0.158103]
[1721361287609,0.155297,64393.0,64387.0,0.158103]
[1721361288010,0.155297,64393.0,64387.0,0.159103]
[1721361288462,0.155297,64393.0,64387.0,0.158103]
[1721361288630,0.0617,64392.0,64387.0,0.158103]
[1721361288835,0.0617,64392.0,64387.0,0.159103]
[1721361289038,0.007,64391.0,64387.0,0.003794]
[1721361289235,0.216999,64392.0,64387.0,0.003794]
[1721361290026,0.155301,64391.0,64387.0,0.003794]
[1721361290253,0.155304,64390.0,64387.0,0.001]
[1721361290459,0.077,64389.0,64387.0,0.001]
[1721361290889,0.077,64389.0,64385.0,0.002794]
[1721361291091,0.0617,64387.0,64385.0,0.002794]
[1721361291279,0.0617,64387.0,64383.0,0.002794]
[1721361292689,0.0637,64387.0,64383.0,0.002794]
[1721361293002,0.0637,64387.0,64380.0,0.000913]
[1721361293003,0.155316,64385.0,64381.0,0.002794]
[1721361294166,0.0647,64387.0,64381.0,0.002794]
[1721361294367,0.220012,64387.0,64381.0,0.158117]
[1721361294597,0.217012,64387.0,64381.0,0.158117]
[1721361295152,0.001,64385.0,64381.0,0.158117]
[1721361295806,0.219012,64387.0,64381.0,0.158117]
[1721361295935,0.222012,64387.0,64381.0,0.158117]
[1721361296137,0.532634,64387.0,64381.0,0.002794]
[1721361296345,0.222012,64387.0,64381.0,0.002794]
[1721361296537,0.005,64387.0,64384.0,0.155317]
[1721361296769,0.005,64387.0,64385.0,0.002794]
[1721361297179,0.005,64387.0,64384.0,0.155317]
[1721361297180,0.005,64387.0,64386.0,0.155313]
[1721361297437,0.002,64387.0,64386.0,0.155313]
[1721361297664,0.0767,64393.0,64384.0,0.1441]
[1721361297665,0.04659902,64393.0,64385.0,0.089]
[1721361297877,0.11649877,64399.0,64385.0,0.089]
[1721361297878,0.11059902,64400.0,64394.0,0.155292]
[1721361298069,0.21928,64400.0,64394.0,0.155292]
[1721361298414,0.21928,64400.0,64395.0,0.002794]
[1721361299226,0.155282,64399.0,64395.0,0.002794]
[1721361299459,0.155282,64399.0,64392.0,0.616893]
[1721361299460,0.155282,64399.0,64393.0,0.002794]
[1721361299794,0.155282,64399.0,64393.0,0.158088]
[1721361300951,0.155282,64399.0,64395.0,0.001]
[1721361301370,0.155282,64399.0,64395.0,0.002]
[1721361301590,0.162282,64399.0,64395.0,0.002]
[1721361301789,0.170282,64399.0,64395.0,0.002]
[1721361302001,0.163282,64399.0,64395.0,0.001]
[1721361302204,0.163282,64399.0,64393.0,0.155294]
[1721361302205,0.155282,64399.0,64393.0,0.155294]
[1721361303496,0.155285,64398.0,64394.0,0.002794]
[1721361303691,0.155285,64398.0,64393.0,0.002794]
[1721361305128,0.155285,64398.0,64393.0,0.003794]
[1721361305553,0.155285,64398.0,64393.0,0.002794]
[1721361306084,0.162285,64398.0,64393.0,0.003794]
[1721361306296,0.162285,64398.0,64393.0,0.004794]
[1721361306578,0.162285,64398.0,64394.0,0.08]
[1721361307328,0.162285,64398.0,64395.0,0.002794]
[1721361307527,0.155285,64398.0,64395.0,0.002794]
[1721361307723,0.463559,64400.0,64395.0,0.002794]
[1721361307975,0.007,64398.0,64395.0,0.002794]
[1721361308173,0.013,64398.0,64395.0,0.002794]
[1721361308387,0.006,64398.0,64394.0,0.08]
[1721361308542,0.155283,64399.0,64395.0,0.002794]
[1721361308743,0.007,64398.0,64395.0,0.003794]
[1721361309000,0.013,64398.0,64395.0,0.002]
[1721361309184,0.013,64398.0,64395.0,0.004794]
[1721361309386,0.013,64398.0,64397.0,0.220986]
[1721361309704,0.013,64398.0,64397.0,0.531559]
[1721361309856,0.006,64398.0,64397.0,0.531559]
[1721361310578,0.006,64398.0,64397.0,0.614359]
[1721361310778,0.006,64398.0,64397.0,0.89769]
[1721361311344,0.04653065,64412.0,64407.0,0.1484]
[1721361311548,0.04653065,64412.0,64407.0,0.303661]
[1721361311733,0.29078065,64412.0,64407.0,0.303661]
[1721361311956,0.24425,64412.0,64407.0,0.303661]
[1721361312643,0.232448,64413.0,64407.0,0.303661]
[1721361312850,0.02,64412.0,64407.0,0.305661]
[1721361313097,0.02,64412.0,64408.0,0.155259]
[1721361313703,0.02,64412.0,64411.0,0.155252]
[1721361314231,0.01,64412.0,64411.0,1.004262]
[1721361314431,0.630418,64426.0,64418.0,0.155233]
[1721361314630,0.46304871,64428.0,64417.0,0.310476]
[1721361314631,0.155219,64425.0,64419.0,0.155233]
[1721361315479,0.0096115,64433.0,64428.0,0.15521]
[1721361315850,0.07052,64431.0,64428.0,0.15521]
[1721361316220,0.07717479,64430.0,64427.0,0.155214]
[1721361316390,0.1367,64427.0,64419.0,0.001]
[1721361316637,0.013,64425.0,64421.0,0.155228]
[1721361316824,0.07717479,64423.0,64419.0,0.002]
[1721361317023,0.07717479,64423.0,64419.0,0.157231]
[1721361317186,0.07717479,64423.0,64420.0,0.155229]
[1721361317385,0.07717479,64423.0,64419.0,0.002]
[1721361317386,0.07717479,64423.0,64421.0,0.155228]
[1721361317808,0.013,64425.0,64422.0,0.155226]
[1721361318420,0.01,64423.0,64422.0,0.155226]
[1721361318621,0.07717479,64430.0,64420.0,0.310462]
[1721361318824,0.07717479,64430.0,64428.0,0.001]
[1721361319205,0.07717479,64430.0,64426.0,0.155216]
[1721361319405,0.23238279,64430.0,64423.0,0.233123]
[1721361319810,0.155211,64429.0,64423.0,0.155223]
[1721361320012,0.07717479,64430.0,64423.0,0.155223]
[1721361320252,0.07717479,64430.0,64422.0,0.156224]
[1721361320455,0.155212,64428.0,64422.0,0.155224]
[1721361321035,0.01,64423.0,64422.0,0.001]
[1721361321231,0.01,64423.0,64422.0,0.156226]
[1721361321475,0.155211,64429.0,64420.0,0.388658]
[1721361321476,0.07717479,64430.0,64424.0,0.155219]
[1721361321822,0.014,64428.0,64424.0,0.155219]
[1721361322252,0.014,64428.0,64427.0,0.0812]
[1721361322539,0.014,64428.0,64427.0,0.236414]
[1721361322966,0.00834,64431.0,64429.0,0.155209]
[1721361323494,0.07717479,64430.0,64429.0,0.155209]
[1721361324121,0.07717479,64430.0,64429.0,0.156209]
[1721361324815,0.02234,64431.0,64429.0,0.156209]
[1721361325447,0.014,64430.0,64429.0,0.157209]
[1721361325618,0.014,64430.0,64429.0,0.156209]
[1721361325961,0.028,64430.0,64429.0,0.157209]
[1721361326162,0.014,64430.0,64429.0,0.156209]
[1721361326565,0.014,64430.0,64429.0,0.157209]
[1721361327929,0.014,64430.0,64429.0,0.156209]
[1721361328069,0.014,64430.0,64429.0,0.157209]
[1721361328272,0.028,64430.0,64429.0,0.157209]
[1721361328849,0.028,64430.0,64429.0,0.467628]
[1721361329451,0.028,64430.0,64429.0,0.531228]
[1721361330010,0.028,64430.0,64429.0,0.841647]
[1721361334035,0.028,64430.0,64429.0,0.918447]
[1721361335198,0.028,64430.0,64429.0,1.07282874]
[1721361335500,0.028,64430.0,64429.0,1.38324774]
[1721361336438,0.028,64430.0,64429.0,1.47214774]
[1721361337940,0.028,64430.0,64429.0,1.60105272]
[1721361340432,0.028,64430.0,64429.0,1.60105106]
[1721361343978,0.028,64430.0,64429.0,1.47214774]
[1721361344159,0.028,64430.0,64429.0,1.60105093]
[1721361345550,0.028,64430.0,64429.0,1.91146993]
[1721361345751,0.028,64430.0,64429.0,2.01146993]
[1721361346209,0.028,64430.0,64429.0,2.01046055]
[1721361346379,0.014,64430.0,64429.0,1.70004155]
[1721361346557,0.00834,64431.0,64430.0,0.465621]
[1721361346760,0.00834,64431.0,64430.0,0.69451481]
[1721361347200,0.00834,64431.0,64430.0,1.00492881]
[1721361347402,0.00834,64431.0,64430.0,0.69451481]
[1721361347982,0.00834,64431.0,64430.0,1.00492881]
[1721361349124,0.01734,64431.0,64430.0,0.69451481]
[1721361349360,0.01734,64431.0,64430.0,1.00492881]
[1721361349970,0.01734,64431.0,64430.0,0.876035]
[1721361350172,0.01734,64431.0,64430.0,1.00494243]
[1721361350419,0.01734,64431.0,64430.0,0.69452843]
[1721361350825,0.01734,64431.0,64430.0,0.38411443]
[1721361351028,0.01734,64431.0,64430.0,0.22890743]
[1721361351744,0.01734,64431.0,64430.0,0.12890743]
[1721361352627,0.01734,64431.0,64427.0,0.155213]
[1721361352828,0.01734,64431.0,64428.0,0.22891696]
[1721361353047,0.14,64430.0,64429.0,0.12891696]
[1721361353199,0.760828,64430.0,64429.0,0.12891696]
[1721361353401,0.1437,64427.0,64413.0,0.01842473]
[1721361353601,0.01734,64431.0,64410.0,0.4684]
[1721361353602,0.1437,64416.0,64414.0,0.12893777]
[1721361353986,0.1437,64416.0,64412.0,0.15525]
[1721361355791,0.1457,64416.0,64412.0,0.16925]
[1721361355949,0.1457,64416.0,64413.0,0.1]
[1721361357277,0.002,64416.0,64414.0,0.310491]
[1721361357474,0.002,64416.0,64415.0,0.32174767]
[1721361357849,0.001,64416.0,64415.0,0.939615]
[1721361358067,0.155222,64424.0,64418.0,0.155234]
[1721361358239,0.155222,64424.0,64421.0,0.0889]
[1721361358658,0.0622,64426.0,64421.0,0.244128]
[1721361358862,0.0622,64426.0,64422.0,0.155225]
[1721361359677,0.002,64424.0,64422.0,0.155225]
[1721361359878,0.005,64424.0,64422.0,0.155225]
[1721361360090,0.005,64424.0,64418.0,0.39937]
[1721361360243,0.005,64424.0,64418.0,0.310471]
[1721361360448,0.005,64424.0,64420.0,0.15523]
[1721361360669,0.005,64424.0,64420.0,0.155229]
[1721361361044,0.002,64424.0,64421.0,0.155228]
[1721361361249,0.002,64424.0,64422.0,0.155225]
[1721361361461,0.002,64424.0,64421.0,0.155228]
[1721361361661,0.001,64426.0,64421.0,0.155228]
[1721361362227,0.155215,64427.0,64421.0,0.155228]
[1721361362341,0.001,64424.0,64421.0,0.155228]
[1721361362543,0.001,64424.0,64418.0,0.310471]
[1721361362544,0.001,64424.0,64419.0,0.155232]
[1721361362855,0.318746,64434.0,64415.0,0.1]
[1721361362856,0.155234,64419.0,64415.0,0.1]
[1721361363051,0.155234,64419.0,64414.0,0.10942388]
[1721361363281,0.155234,64419.0,64414.0,0.155245]
[1721361363455,0.155231,64420.0,64415.0,0.255242]
[1721361365069,0.001,64426.0,64416.0,0.15438174]
[1721361365347,0.001,64426.0,64418.0,0.310471]
[1721361365520,0.001,64426.0,64419.0,0.310467]
[1721361365690,0.001,64426.0,64418.0,0.310471]
[1721361365691,0.001,64426.0,64422.0,0.155225]
[1721361365879,0.155215,64427.0,64422.0,0.155225]
[1721361367490,0.373024,64428.0,64418.0,0.310471]
[1721361367693,0.15522,64425.0,64420.0,0.15523]
[1721361368269,0.15522,64425.0,64422.0,0.001]
[1721361368468,0.15522,64425.0,64422.0,0.002]
[1721361368764,0.15522,64425.0,64420.0,0.15523]
[1721361369168,0.16222,64425.0,64420.0,0.15523]
[1721361369348,0.16222,64425.0,64421.0,0.155227]
[1721361369349,0.004,64425.0,64421.0,0.155227]
[1721361369811,0.007,64425.0,64421.0,0.155227]
[1721361370336,0.007,64425.0,64422.0,0.155225]
[1721361370808,0.003,64425.0,64422.0,0.155225]
[1721361371217,0.007,64425.0,64420.0,0.15523]
[1721361371453,0.1394,64424.0,64415.0,0.08814]
[1721361371659,0.310458,64421.0,64415.0,0.155243]
[1721361372361,0.155231,64420.0,64415.0,0.155243]
[1721361373132,0.608221,64416.0,64415.0,0.001]
[1721361373369,1.07308374,64416.0,64415.0,0.001]
[1721361373531,1.79051209,64416.0,64415.0,0.001]
[1721361373687,1.77341869,64416.0,64415.0,0.001]
[1721361373890,1.79665187,64416.0,64415.0,0.001]
[1721361374341,1.229183,64416.0,64415.0,0.001]
[1721361374765,1.27564041,64416.0,64415.0,0.004]
[1721361374968,1.27562531,64416.0,64415.0,0.003]
[1721361375174,0.155262,64407.0,64402.0,0.155273]
[1721361375835,0.15527,64404.0,64398.0,0.155283]
[1721361376369,0.15527,64404.0,64395.0,0.311493]
[1721361376370,0.15527,64404.0,64399.0,0.155281]
[1721361377366,0.155267,64406.0,64401.0,0.155276]
[1721361377535,0.155267,64406.0,64399.0,0.310563]
[1721361377536,0.155258,64409.0,64404.0,0.155269]
[1721361377742,0.005,64407.0,64404.0,0.155269]
[1721361378019,0.155263,64407.0,64402.0,0.155273]
[1721361378139,0.310517,64409.0,64400.0,0.310558]
[1721361378343,0.007,64404.0,64400.0,0.310558]
[1721361378543,0.007,64404.0,64403.0,0.155272]
[1721361378978,0.003,64404.0,64403.0,0.155272]
[1721361379177,0.005,64407.0,64403.0,0.155272]
[1721361379378,0.01,64407.0,64403.0,0.155272]
[1721361379579,0.001,64404.0,64403.0,0.155272]
[1721361382999,0.155257,64409.0,64404.0,0.155269]
[1721361383360,0.310491,64414.0,64402.0,0.310548]
[1721361383560,0.0605,64420.0,64405.0,0.15438174]
[1721361383561,0.310472,64418.0,64405.0,0.15438174]
[1721361383739,0.155249,64413.0,64408.0,0.155259]
[1721361384121,0.155243,64415.0,64409.0,0.155256]
[1721361384322,0.155243,64415.0,64410.0,0.155255]
[1721361384992,0.008,64413.0,64410.0,0.155255]
[1721361385412,0.007,64413.0,64410.0,0.155255]
[1721361386236,0.007,64413.0,64410.0,0.156255]
[1721361387369,0.009,64415.0,64410.0,0.001]
[1721361387572,0.008,64413.0,64410.0,0.002]
[1721361387769,0.015,64413.0,64410.0,0.003]
[1721361387971,0.015,64413.0,64410.0,0.158254]
[1721361388497,0.007,64413.0,64410.0,0.157254]
[1721361389046,0.007,64413.0,64410.0,0.158254]
[1721361389248,0.007,64413.0,64410.0,0.003]
[1721361389249,0.465757,64411.0,64410.0,0.003]
[1721361389758,0.155252,64411.0,64410.0,0.003]
[1721361390384,0.155252,64411.0,64410.0,0.002]
[1721361390583,0.155252,64411.0,64410.0,0.001]
[1721361391154,0.155252,64411.0,64405.0,0.155266]
[1721361391355,0.155256,64410.0,64405.0,0.155266]
[1721361392011,0.15526,64408.0,64403.0,0.15527]
[1721361392453,0.15526,64408.0,64405.0,0.001]
[1721361392454,0.310524,64408.0,64405.0,0.001]
[1721361392784,0.155259,64409.0,64405.0,0.001]
[1721361392912,0.310511,64410.0,64405.0,0.001]
[1721361393113,0.15526,64408.0,64405.0,0.001]
[1721361394311,0.15526,64408.0,64403.0,0.155271]
[1721361394698,0.15626,64408.0,64403.0,0.155271]
[1721361395318,0.001,64408.0,64403.0,0.155271]
[1721361395525,0.003,64408.0,64403.0,0.155271]
[1721361396131,0.001,64408.0,64403.0,0.155271]
[1721361396535,0.155254,64411.0,64405.0,0.155266]
[1721361396736,0.001,64408.0,64406.0,0.31053]
[1721361396939,0.001,64408.0,64407.0,0.155262]
[1721361397150,0.001,64408.0,64405.0,0.244266]
[1721361397351,0.001,64408.0,64406.0,0.155264]
[1721361397556,0.002,64408.0,64406.0,0.155264]
[1721361397942,0.001,64408.0,64406.0,0.155264]
[1721361398142,0.001,64408.0,64407.0,0.155262]
[1721361398340,0.003,64408.0,64407.0,0.155262]
[1721361399099,0.001,64408.0,64405.0,0.244267]
[1721361399235,0.001,64408.0,64406.0,0.155264]
[1721361399435,0.002,64408.0,64406.0,0.155264]
[1721361399914,0.003,64408.0,64406.0,0.155264]
[1721361400119,0.003,64408.0,64395.0,0.000913]
[1721361400120,0.155273,64403.0,64397.0,0.156199]
[1721361400320,0.155273,64403.0,64398.0,0.155284]
[1721361400781,0.155273,64403.0,64397.0,0.000913]
[1721361401183,0.15527,64404.0,64398.0,0.155283]
[1721361401534,0.155272,64403.0,64398.0,0.155283]
[1721361401735,0.155275,64402.0,64397.0,0.000913]
[1721361402151,0.155284,64398.0,64397.0,0.000913]
[1721361402350,0.465852,64398.0,64397.0,0.000913]
[1721361403256,0.155284,64398.0,64397.0,0.000913]
[1721361404517,0.156284,64398.0,64397.0,0.000913]
[1721361405487,0.218384,64398.0,64397.0,0.000913]
[1721361405691,1.0082798,64398.0,64397.0,0.000913]
[1721361405890,1.226688,64398.0,64397.0,0.000913]
[1721361407091,1.225688,64398.0,64397.0,0.000913]
[1721361407585,1.229688,64398.0,64397.0,0.000913]
[1721361407784,1.232688,64398.0,64397.0,0.000913]
[1721361408153,1.225688,64398.0,64397.0,0.000913]
[1721361408344,1.229688,64398.0,64397.0,0.000913]
[1721361408548,1.232688,64398.0,64397.0,0.000913]
[1721361409855,1.37120557,64398.0,64397.0,0.000913]
[1721361410255,1.232688,64398.0,64397.0,0.000913]
[1721361413497,1.38706974,64398.0,64397.0,0.000913]
[1721361413670,1.43706974,64398.0,64397.0,0.000913]
[1721361413873,1.49319701,64398.0,64397.0,0.000913]
[1721361414097,1.43306974,64398.0,64397.0,0.000913]
[1721361414296,1.38006974,64398.0,64397.0,0.000913]
[1721361414643,1.45819709,64398.0,64397.0,0.001913]
[1721361414855,1.44852097,64398.0,64397.0,0.001913]
[1721361415432,1.40206974,64398.0,64397.0,0.001913]
[1721361415726,1.45819709,64398.0,64397.0,0.001913]
[1721361415957,1.40206974,64398.0,64397.0,0.001913]
[1721361416334,1.40829074,64398.0,64397.0,0.001913]
[1721361416537,1.45474197,64398.0,64397.0,0.001913]
[1721361416838,1.40829074,64398.0,64397.0,0.001913]
[1721361417500,1.45474126,64398.0,64397.0,0.001913]
[1721361417627,1.60909083,64398.0,64397.0,0.001913]
[1721361418294,1.45474126,64398.0,64397.0,0.001913]
[1721361418515,1.45474854,64398.0,64397.0,0.001913]
[1721361418692,1.41796686,64398.0,64397.0,0.001913]
[1721361419396,1.45474265,64398.0,64397.0,0.001913]
[1721361420376,1.45474256,64398.0,64397.0,0.001913]
[1721361420577,1.46441876,64398.0,64397.0,0.001913]
[1721361421099,0.804641,64398.0,64397.0,0.001913]
[1721361422019,0.79842,64398.0,64397.0,0.001913]
[1721361422526,0.022,64398.0,64397.0,0.001913]
[1721361422748,0.177284,64398.0,64397.0,0.001913]
[1721361422939,0.487852,64398.0,64397.0,0.001913]
[1721361426019,0.79842,64398.0,64397.0,0.001913]
[1721361426283,1.108988,64398.0,64397.0,0.001913]
[1721361426691,1.26336974,64398.0,64397.0,0.001913]
[1721361426854,1.46064578,64398.0,64397.0,0.001913]
[1721361427057,1.50708148,64398.0,64397.0,0.001913]
[1721361428686,1.46064578,64398.0,64397.0,0.001913]
[1721361428864,1.41064578,64398.0,64397.0,0.001913]
[1721361429069,1.79062359,64398.0,64397.0,0.001913]
[1721361429273,1.79062401,64398.0,64397.0,0.001913]
[1721361429696,1.7712142,64398.0,64397.0,0.001913]
[1721361429970,1.6992142,64398.0,64397.0,0.000913]
[1721361430299,1.7772142,64398.0,64397.0,0.001913]
[1721361430723,1.7272142,64398.0,64397.0,0.001913]
[1721361430923,1.77364439,64398.0,64397.0,0.001913]
[1721361431141,1.79686405,64398.0,64397.0,0.001913]